[Event "Early-Titled-Tuesday-Blitz-December-26-2023"]
[Site "Chess.com"]
[Date "2023.12.26"]
[Round "3"]
[White "BashirliSaadat"]
[Black "GP9isback23"]
[Result "1-0"]
[WhiteElo "2453"]
[BlackElo "2612"]
[TimeControl "180+1"]
[EndTime "8:26:29 PST"]
[Termination "BashirliSaadat won by resignation"]

1. e4 {[%clk 0:03:00.9]} 1... c5 {[%clk 0:02:56.3]} 2. Nf3 {[%clk 0:03:00.9]}
2... e6 {[%clk 0:02:56.5]} 3. c4 {[%clk 0:03:00]} 3... Nc6 {[%clk 0:02:55.5]} 4.
d4 {[%clk 0:02:54.4]} 4... cxd4 {[%clk 0:02:54.6]} 5. Nxd4 {[%clk 0:02:55]} 5...
Nf6 {[%clk 0:02:55.1]} 6. Nc3 {[%clk 0:02:54.2]} 6... Bb4 {[%clk 0:02:54.7]} 7.
Nxc6 {[%clk 0:02:48.7]} 7... bxc6 {[%clk 0:02:52.8]} 8. Bd3 {[%clk 0:02:46.2]}
8... e5 {[%clk 0:02:36.1]} 9. O-O {[%clk 0:02:45.2]} 9... O-O {[%clk 0:02:35.4]}
10. f4 {[%clk 0:02:42.5]} 10... d6 {[%clk 0:02:22.1]} 11. f5 {[%clk 0:02:40.7]}
11... d5 {[%clk 0:01:46]} 12. cxd5 {[%clk 0:02:24.3]} 12... Bxc3 {[%clk
0:01:37.1]} 13. bxc3 {[%clk 0:02:22.3]} 13... cxd5 {[%clk 0:01:37.8]} 14. Bg5
{[%clk 0:02:19.9]} 14... Bb7 {[%clk 0:01:34]} 15. Rb1 {[%clk 0:02:19.2]} 15...
Bc6 {[%clk 0:01:30]} 16. exd5 {[%clk 0:02:15]} 16... Qxd5 {[%clk 0:01:26.9]} 17.
Rf2 {[%clk 0:02:12.4]} 17... Rfd8 {[%clk 0:01:12.3]} 18. Bxf6 {[%clk 0:02:05]}
18... gxf6 {[%clk 0:01:08.6]} 19. Qg4+ {[%clk 0:02:05]} 19... Kh8 {[%clk
0:01:06.1]} 20. Qh4 {[%clk 0:01:49.5]} 20... Rd6 {[%clk 0:00:41.2]} 21. Bc4
{[%clk 0:01:45.3]} 21... Qc5 {[%clk 0:00:26.9]} 22. Kh1 {[%clk 0:01:35.1]} 22...
Rad8 {[%clk 0:00:26]} 23. h3 {[%clk 0:01:33.2]} 23... e4 {[%clk 0:00:16.4]} 24.
Bxf7 {[%clk 0:01:25.1]} 24... e3 {[%clk 0:00:14.9]} 25. Bg6 {[%clk 0:01:10.3]}
25... R8d7 {[%clk 0:00:04.9]} 26. Rff1 {[%clk 0:00:59.1]} 26... Rf7 {[%clk
0:00:02.6]} 1-0

[Event "Early-Titled-Tuesday-Blitz-December-26-2023"]
[Site "Chess.com"]
[Date "2023.12.26"]
[Round "3"]
[White "Russian_berezka"]
[Black "stratacticos"]
[Result "1-0"]
[WhiteElo "2554"]
[BlackElo "1854"]
[TimeControl "180+1"]
[EndTime "8:26:33 PST"]
[Termination "Russian_berezka won on time"]

1. d4 {[%clk 0:02:56.6]} 1... Nf6 {[%clk 0:02:59.1]} 2. c3 {[%clk 0:02:53.2]}
2... g6 {[%clk 0:02:56.9]} 3. e3 {[%clk 0:02:53.3]} 3... Bg7 {[%clk 0:02:56.2]}
4. Nf3 {[%clk 0:02:53.8]} 4... c5 {[%clk 0:02:54]} 5. Be2 {[%clk 0:02:54.4]}
5... cxd4 {[%clk 0:02:49.1]} 6. cxd4 {[%clk 0:02:47.6]} 6... b6 {[%clk
0:02:47.5]} 7. O-O {[%clk 0:02:47.2]} 7... O-O {[%clk 0:02:46]} 8. b3 {[%clk
0:02:47]} 8... Bb7 {[%clk 0:02:44.5]} 9. Bb2 {[%clk 0:02:47]} 9... Bxf3 {[%clk
0:02:42.3]} 10. Bxf3 {[%clk 0:02:46.3]} 10... d5 {[%clk 0:02:42.2]} 11. Nc3
{[%clk 0:02:46.6]} 11... e6 {[%clk 0:02:41.4]} 12. e4 {[%clk 0:02:38.2]} 12...
dxe4 {[%clk 0:02:37.3]} 13. Nxe4 {[%clk 0:02:34]} 13... Nd5 {[%clk 0:02:35.7]}
14. Nc3 {[%clk 0:02:28]} 14... Nc6 {[%clk 0:02:29.4]} 15. Nxd5 {[%clk
0:02:25.1]} 15... exd5 {[%clk 0:02:28.7]} 16. Rc1 {[%clk 0:02:23.8]} 16... Rc8
{[%clk 0:02:27.4]} 17. Qd3 {[%clk 0:02:20.9]} 17... Qd6 {[%clk 0:02:06.4]} 18.
Qa6 {[%clk 0:02:08.4]} 18... Rfe8 {[%clk 0:01:53.5]} 19. Rc2 {[%clk 0:02:03.3]}
19... Rc7 {[%clk 0:01:41.3]} 20. Ba3 {[%clk 0:01:54.9]} 20... Qe6 {[%clk
0:01:27.5]} 21. Qa4 {[%clk 0:01:50.2]} 21... Rec8 {[%clk 0:00:59]} 22. Rfc1
{[%clk 0:01:41.2]} 22... Bxd4 {[%clk 0:00:50.4]} 23. g3 {[%clk 0:01:33]} 23...
Kg7 {[%clk 0:00:20.5]} 24. Rxc6 {[%clk 0:01:25.9]} 24... Rxc6 {[%clk 0:00:19.3]}
25. Qxd4+ {[%clk 0:01:24.4]} 25... Qf6 {[%clk 0:00:12.2]} 26. Qd2 {[%clk
0:01:22.9]} 26... Rxc1+ {[%clk 0:00:11.1]} 27. Bxc1 {[%clk 0:01:22]} 27... d4
{[%clk 0:00:10.4]} 28. Kg2 {[%clk 0:01:20.4]} 28... h5 {[%clk 0:00:06.3]} 29.
Bb2 {[%clk 0:01:16]} 29... Rd8 {[%clk 0:00:04.5]} 30. h4 {[%clk 0:01:14.8]} 1-0

[Event "Early-Titled-Tuesday-Blitz-December-26-2023"]
[Site "Chess.com"]
[Date "2023.12.26"]
[Round "3"]
[White "GoltsevDmitry2000"]
[Black "Alexander_Donchenko"]
[Result "0-1"]
[WhiteElo "2698"]
[BlackElo "2914"]
[TimeControl "180+1"]
[EndTime "8:26:36 PST"]
[Termination "Alexander_Donchenko won by checkmate"]

1. e4 {[%clk 0:03:00.3]} 1... c6 {[%clk 0:02:59.9]} 2. d4 {[%clk 0:03:00]} 2...
d5 {[%clk 0:03:00.8]} 3. Nc3 {[%clk 0:03:00.9]} 3... dxe4 {[%clk 0:03:01]} 4.
Nxe4 {[%clk 0:03:01.8]} 4... Bf5 {[%clk 0:03:01.3]} 5. Ng3 {[%clk 0:03:01.8]}
5... Bg6 {[%clk 0:03:02]} 6. Nh3 {[%clk 0:03:02.7]} 6... Nf6 {[%clk 0:03:01.6]}
7. Nf4 {[%clk 0:03:03]} 7... e5 {[%clk 0:03:02]} 8. dxe5 {[%clk 0:03:03.1]} 8...
Qa5+ {[%clk 0:03:02.6]} 9. c3 {[%clk 0:03:03.1]} 9... Qxe5+ {[%clk 0:03:03.2]}
10. Qe2 {[%clk 0:03:03.2]} 10... Nbd7 {[%clk 0:03:02.7]} 11. h4 {[%clk
0:03:02.2]} 11... Bc5 {[%clk 0:02:45.6]} 12. h5 {[%clk 0:02:57.3]} 12... Bc2
{[%clk 0:02:45.5]} 13. h6 {[%clk 0:01:58.7]} 13... g6 {[%clk 0:02:33.7]} 14.
Qxe5+ {[%clk 0:01:53.8]} 14... Nxe5 {[%clk 0:02:34.6]} 15. f3 {[%clk 0:01:54.5]}
15... O-O-O {[%clk 0:02:31]} 16. Be2 {[%clk 0:01:54]} 16... Rhe8 {[%clk
0:02:29.7]} 17. Kf1 {[%clk 0:01:37.4]} 17... Bd1 {[%clk 0:02:23.5]} 18. b4
{[%clk 0:01:33.1]} 18... Bxe2+ {[%clk 0:02:19.9]} 19. Kxe2 {[%clk 0:01:29.5]}
19... Nd3+ {[%clk 0:02:01.2]} 20. Ne4 {[%clk 0:01:28.3]} 20... Nxc1+ {[%clk
0:01:55.6]} 21. Raxc1 {[%clk 0:01:26.5]} 21... Nxe4 {[%clk 0:01:56.2]} 22. fxe4
{[%clk 0:01:23.7]} 22... Rxe4+ {[%clk 0:01:57.1]} 23. Kf3 {[%clk 0:01:08.1]}
23... Re3+ {[%clk 0:01:57.4]} 24. Kf2 {[%clk 0:01:08.6]} 24... Bb6 {[%clk
0:01:34.3]} 25. Kf1 {[%clk 0:01:01.3]} 25... Rd2 {[%clk 0:01:32.6]} 26. Rh3
{[%clk 0:01:01.2]} 26... Rxa2 {[%clk 0:01:22.4]} 27. Re1 {[%clk 0:00:50.3]}
27... Rf2+ {[%clk 0:01:14.6]} 28. Kxf2 {[%clk 0:00:45.4]} 28... Rxh3+ {[%clk
0:01:15.2]} 29. Kf1 {[%clk 0:00:41.9]} 29... Rh1+ {[%clk 0:01:14.4]} 30. Ke2
{[%clk 0:00:42.5]} 30... Rxe1+ {[%clk 0:01:15.2]} 31. Kxe1 {[%clk 0:00:43.4]}
31... Be3 {[%clk 0:01:15.6]} 32. Nd3 {[%clk 0:00:42.7]} 32... Bxh6 {[%clk
0:01:12.3]} 33. Ne5 {[%clk 0:00:42.9]} 33... Bg7 {[%clk 0:01:12.8]} 34. Nxf7
{[%clk 0:00:42.1]} 34... Bxc3+ {[%clk 0:01:13]} 35. Ke2 {[%clk 0:00:43]} 35...
Bxb4 {[%clk 0:01:13.4]} 36. Ng5 {[%clk 0:00:43.4]} 36... Be7 {[%clk 0:01:13.2]}
37. Ne4 {[%clk 0:00:42.2]} 37... Kd7 {[%clk 0:01:12.8]} 38. g4 {[%clk
0:00:43.1]} 38... Ke6 {[%clk 0:01:13.1]} 39. g5 {[%clk 0:00:44]} 39... Kf5
{[%clk 0:01:13.3]} 40. Kf3 {[%clk 0:00:44.9]} 40... a5 {[%clk 0:01:12.1]} 41.
Ng3+ {[%clk 0:00:44.6]} 41... Kxg5 {[%clk 0:01:11.8]} 42. Ne2 {[%clk 0:00:45.5]}
42... Kf5 {[%clk 0:01:11.4]} 43. Kf2 {[%clk 0:00:46.4]} 43... Bf6 {[%clk
0:01:09.4]} 44. Ng3+ {[%clk 0:00:47.2]} 44... Ke5 {[%clk 0:01:09.9]} 45. Kg2
{[%clk 0:00:47.6]} 45... b5 {[%clk 0:01:10.1]} 46. Nf1 {[%clk 0:00:47.3]} 46...
a4 {[%clk 0:01:10.4]} 47. Ne3 {[%clk 0:00:47.9]} 47... Bg5 {[%clk 0:01:10.6]}
48. Nf1 {[%clk 0:00:47.7]} 48... a3 {[%clk 0:01:10.6]} 49. Ng3 {[%clk
0:00:46.6]} 49... a2 {[%clk 0:01:10.8]} 50. Kh3 {[%clk 0:00:46.4]} 50... a1=Q
{[%clk 0:01:11.1]} 51. Kg2 {[%clk 0:00:46.9]} 51... Qb2+ {[%clk 0:01:11]} 52.
Kh3 {[%clk 0:00:46.8]} 52... Bf4 {[%clk 0:01:11.4]} 53. Kh4 {[%clk 0:00:45.3]}
53... Qh2+ {[%clk 0:01:11.2]} 54. Kg4 {[%clk 0:00:45.3]} 54... Qxg3# {[%clk
0:01:12.1]} 0-1

[Event "Early-Titled-Tuesday-Blitz-December-26-2023"]
[Site "Chess.com"]
[Date "2023.12.26"]
[Round "3"]
[White "LeoWin2012"]
[Black "Kotofeyca"]
[Result "0-1"]
[WhiteElo "2230"]
[BlackElo "2428"]
[TimeControl "180+1"]
[EndTime "8:26:41 PST"]
[Termination "Kotofeyca won by resignation"]

1. e4 {[%clk 0:03:00.9]} 1... c5 {[%clk 0:02:59.5]} 2. Nf3 {[%clk 0:03:00.6]}
2... d6 {[%clk 0:03:00.1]} 3. Bb5+ {[%clk 0:02:59]} 3... Bd7 {[%clk 0:02:59]} 4.
Bxd7+ {[%clk 0:02:58]} 4... Qxd7 {[%clk 0:02:59.9]} 5. O-O {[%clk 0:02:58.2]}
5... Nf6 {[%clk 0:03:00.5]} 6. Re1 {[%clk 0:02:57.8]} 6... Nc6 {[%clk
0:02:59.2]} 7. c3 {[%clk 0:02:57.4]} 7... e6 {[%clk 0:02:59.7]} 8. d4 {[%clk
0:02:56.7]} 8... cxd4 {[%clk 0:03:00.6]} 9. cxd4 {[%clk 0:02:57.6]} 9... d5
{[%clk 0:02:59.7]} 10. e5 {[%clk 0:02:52]} 10... Ne4 {[%clk 0:02:59.3]} 11. Nc3
{[%clk 0:02:52.4]} 11... Nxc3 {[%clk 0:02:58]} 12. bxc3 {[%clk 0:02:53.3]} 12...
Rc8 {[%clk 0:02:58.1]} 13. Bf4 {[%clk 0:02:42.9]} 13... Na5 {[%clk 0:02:56.4]}
14. Qd3 {[%clk 0:02:29.9]} 14... Nc4 {[%clk 0:02:52.8]} 15. h4 {[%clk 0:02:23]}
15... h6 {[%clk 0:02:50.8]} 16. Nd2 {[%clk 0:02:06.8]} 16... Be7 {[%clk
0:02:47.7]} 17. Nxc4 {[%clk 0:02:01.6]} 17... Rxc4 {[%clk 0:02:48.6]} 18. Reb1
{[%clk 0:01:59]} 18... Bxh4 {[%clk 0:02:44.7]} 19. Rb3 {[%clk 0:01:55.9]} 19...
O-O {[%clk 0:02:37.5]} 20. Rab1 {[%clk 0:01:55.1]} 20... b6 {[%clk 0:02:37.7]}
21. Qh3 {[%clk 0:01:49.7]} 21... Be7 {[%clk 0:02:24.7]} 22. Qg3 {[%clk
0:01:43.7]} 22... Kh8 {[%clk 0:02:17.9]} 23. Qf3 {[%clk 0:01:26.2]} 23... Rfc8
{[%clk 0:02:16.3]} 24. g3 {[%clk 0:01:23.1]} 24... Kg8 {[%clk 0:02:13.6]} 25.
Kg2 {[%clk 0:01:22.8]} 25... Qa4 {[%clk 0:02:05.6]} 26. R1b2 {[%clk 0:01:17.1]}
26... Qc6 {[%clk 0:02:03]} 27. Bd2 {[%clk 0:01:10.7]} 27... Ra4 {[%clk
0:01:53.1]} 28. Qg4 {[%clk 0:01:04.9]} 28... Kf8 {[%clk 0:01:49.7]} 29. f4
{[%clk 0:00:54.2]} 29... g6 {[%clk 0:01:39.7]} 30. Qh3 {[%clk 0:00:44.4]} 30...
h5 {[%clk 0:01:39.4]} 31. g4 {[%clk 0:00:42.4]} 31... Qc4 {[%clk 0:01:25.5]} 32.
Be3 {[%clk 0:00:19.3]} 32... Rxa2 {[%clk 0:01:17.1]} 33. gxh5 {[%clk 0:00:17.4]}
33... Qxb3 {[%clk 0:01:13.5]} 34. hxg6 {[%clk 0:00:15.1]} 34... Qxb2+ {[%clk
0:01:12.7]} 35. Kg3 {[%clk 0:00:12.4]} 35... Qg2+ {[%clk 0:01:07.7]} 36. Qxg2
{[%clk 0:00:11.8]} 36... Rxg2+ {[%clk 0:01:08.6]} 37. Kxg2 {[%clk 0:00:12]}
37... fxg6 {[%clk 0:01:08.8]} 0-1

[Event "Early-Titled-Tuesday-Blitz-December-26-2023"]
[Site "Chess.com"]
[Date "2023.12.26"]
[Round "3"]
[White "Rozhkov_V"]
[Black "Yushko_Olga"]
[Result "0-1"]
[WhiteElo "2369"]
[BlackElo "2174"]
[TimeControl "180+1"]
[EndTime "8:26:42 PST"]
[Termination "Yushko_Olga won by checkmate"]

1. e4 {[%clk 0:03:00.9]} 1... e6 {[%clk 0:02:59.8]} 2. d4 {[%clk 0:03:00.7]}
2... d5 {[%clk 0:02:59.8]} 3. e5 {[%clk 0:03:01.4]} 3... c5 {[%clk 0:02:59.8]}
4. c3 {[%clk 0:03:02.1]} 4... Nc6 {[%clk 0:03:00.5]} 5. Nf3 {[%clk 0:03:02.7]}
5... Qb6 {[%clk 0:03:00.1]} 6. a3 {[%clk 0:03:03.2]} 6... cxd4 {[%clk
0:03:00.2]} 7. cxd4 {[%clk 0:03:03.1]} 7... Nge7 {[%clk 0:03:00.5]} 8. b4 {[%clk
0:03:03.5]} 8... Nf5 {[%clk 0:02:59.6]} 9. Be3 {[%clk 0:03:03.9]} 9... Be7
{[%clk 0:02:56.1]} 10. Bd3 {[%clk 0:03:04.3]} 10... O-O {[%clk 0:02:54.8]} 11.
O-O {[%clk 0:03:03.6]} 11... Bd7 {[%clk 0:02:54.3]} 12. Nc3 {[%clk 0:03:04.2]}
12... h6 {[%clk 0:02:54.3]} 13. Bxf5 {[%clk 0:03:03.7]} 13... exf5 {[%clk
0:02:52.2]} 14. Nxd5 {[%clk 0:03:04.2]} 14... Qd8 {[%clk 0:02:49.3]} 15. Nxe7+
{[%clk 0:03:04.1]} 15... Nxe7 {[%clk 0:02:49.3]} 16. Rc1 {[%clk 0:02:59.5]}
16... Nd5 {[%clk 0:02:48.8]} 17. Qb3 {[%clk 0:02:46.9]} 17... Be6 {[%clk
0:02:47.7]} 18. Qb2 {[%clk 0:02:47.6]} 18... f4 {[%clk 0:02:43.9]} 19. Bd2
{[%clk 0:02:47.4]} 19... g5 {[%clk 0:02:40.1]} 20. Ne1 {[%clk 0:02:43.1]} 20...
g4 {[%clk 0:02:31.2]} 21. Nd3 {[%clk 0:02:38.5]} 21... f3 {[%clk 0:02:29.7]} 22.
Bxh6 {[%clk 0:02:34.9]} 22... Re8 {[%clk 0:02:28.8]} 23. Qd2 {[%clk 0:02:20.4]}
23... Kh7 {[%clk 0:02:16.7]} 24. Bg5 {[%clk 0:02:04.3]} 24... Qb6 {[%clk
0:02:07.1]} 25. Nf4 {[%clk 0:01:53.2]} 25... Rg8 {[%clk 0:01:59.2]} 26. Nxd5
{[%clk 0:01:43.7]} 26... Bxd5 {[%clk 0:02:00.1]} 27. Bf6 {[%clk 0:01:32.1]}
27... fxg2 {[%clk 0:01:57.8]} 28. Rfd1 {[%clk 0:01:29.1]} 28... Qe6 {[%clk
0:01:56.1]} 29. Qf4 {[%clk 0:01:21.5]} 29... Rg6 {[%clk 0:01:49.2]} 30. Rd3
{[%clk 0:01:06.3]} 30... Rh6 {[%clk 0:01:34.9]} 31. Rg3 {[%clk 0:00:51.9]} 31...
Rg8 {[%clk 0:01:34.1]} 32. Rc5 {[%clk 0:00:49]} 32... b6 {[%clk 0:01:14]} 33.
Rc7 {[%clk 0:00:48.8]} 33... Rh5 {[%clk 0:00:52]} 34. Rgc3 {[%clk 0:00:31]}
34... Rf5 {[%clk 0:00:50.9]} 35. Qg3 {[%clk 0:00:31.6]} 35... Rxf6 {[%clk
0:00:49.4]} 36. exf6 {[%clk 0:00:28.9]} 36... Qe1# {[%clk 0:00:49]} 0-1

[Event "Early-Titled-Tuesday-Blitz-December-26-2023"]
[Site "Chess.com"]
[Date "2023.12.26"]
[Round "3"]
[White "bubeliang"]
[Black "newyorkmouse"]
[Result "1-0"]
[WhiteElo "2787"]
[BlackElo "2467"]
[TimeControl "180+1"]
[EndTime "8:26:45 PST"]
[Termination "bubeliang won by checkmate"]

1. e4 {[%clk 0:03:00.9]} 1... d6 {[%clk 0:02:57.5]} 2. d4 {[%clk 0:02:59]} 2...
Nf6 {[%clk 0:02:57.5]} 3. Nc3 {[%clk 0:02:59.5]} 3... Nbd7 {[%clk 0:02:55.2]} 4.
Nf3 {[%clk 0:02:59]} 4... e5 {[%clk 0:02:54.9]} 5. Bc4 {[%clk 0:02:59.5]} 5...
h6 {[%clk 0:02:54.9]} 6. O-O {[%clk 0:02:57.2]} 6... Be7 {[%clk 0:02:54.8]} 7.
Qe2 {[%clk 0:02:46.2]} 7... c6 {[%clk 0:02:53.6]} 8. a4 {[%clk 0:02:44.2]} 8...
Qc7 {[%clk 0:02:46.9]} 9. Rd1 {[%clk 0:02:44]} 9... Nf8 {[%clk 0:02:44.7]} 10.
Be3 {[%clk 0:02:35.7]} 10... g5 {[%clk 0:02:43.5]} 11. Rd2 {[%clk 0:02:33.9]}
11... Ng6 {[%clk 0:02:22.2]} 12. Rad1 {[%clk 0:02:32]} 12... Nf4 {[%clk
0:02:10.5]} 13. Bxf4 {[%clk 0:02:30.6]} 13... gxf4 {[%clk 0:02:11.4]} 14. dxe5
{[%clk 0:02:22.4]} 14... dxe5 {[%clk 0:02:10.7]} 15. Na2 {[%clk 0:02:22]} 15...
Rg8 {[%clk 0:02:07.5]} 16. Kh1 {[%clk 0:02:20.6]} 16... Bg4 {[%clk 0:01:34.2]}
17. Nc1 {[%clk 0:02:18.3]} 17... a6 {[%clk 0:01:13.9]} 18. Qd3 {[%clk
0:02:10.4]} 18... b5 {[%clk 0:01:12.5]} 19. axb5 {[%clk 0:02:06.8]} 19... axb5
{[%clk 0:01:13.4]} 20. Bb3 {[%clk 0:02:06.4]} 20... Nd7 {[%clk 0:01:02.6]} 21.
h3 {[%clk 0:01:58]} 21... Nc5 {[%clk 0:00:55.2]} 22. Qe2 {[%clk 0:01:51.1]}
22... Be6 {[%clk 0:00:48.5]} 23. Bxe6 {[%clk 0:01:50.5]} 23... Nxe6 {[%clk
0:00:49.4]} 24. c4 {[%clk 0:01:47.5]} 24... b4 {[%clk 0:00:47.4]} 25. Nd3 {[%clk
0:01:47.4]} 25... f6 {[%clk 0:00:45.2]} 26. Nfxe5 {[%clk 0:01:39.2]} 26... fxe5
{[%clk 0:00:32]} 27. Qh5+ {[%clk 0:01:38.5]} 27... Kf8 {[%clk 0:00:32.4]} 28.
Nxe5 {[%clk 0:01:38.7]} 28... Ng5 {[%clk 0:00:30.8]} 29. Qxh6+ {[%clk
0:01:36.8]} 29... Ke8 {[%clk 0:00:27.3]} 30. Qh5+ {[%clk 0:01:28.1]} 30... Kf8
{[%clk 0:00:27]} 31. Ng6+ {[%clk 0:01:27.9]} 31... Rxg6 {[%clk 0:00:13.5]} 32.
Qxg6 {[%clk 0:01:28.8]} 32... Qe5 {[%clk 0:00:10.8]} 33. Qxc6 {[%clk 0:01:24.3]}
33... Re8 {[%clk 0:00:09.4]} 34. Qh6+ {[%clk 0:01:18.7]} 34... Kg8 {[%clk
0:00:08.5]} 35. Qg6+ {[%clk 0:01:17.1]} 35... Kf8 {[%clk 0:00:08]} 36. Rd5
{[%clk 0:01:17]} 36... Qxb2 {[%clk 0:00:04.1]} 37. Rf5+ {[%clk 0:01:16.6]} 37...
Bf6 {[%clk 0:00:01.9]} 38. Rxf6+ {[%clk 0:01:17]} 38... Qxf6 {[%clk 0:00:02.2]}
39. Qxf6+ {[%clk 0:01:17.9]} 39... Nf7 {[%clk 0:00:03]} 40. Rd7 {[%clk
0:01:17.5]} 40... Re7 {[%clk 0:00:02.9]} 41. Qxe7+ {[%clk 0:01:17.4]} 41... Kg7
{[%clk 0:00:03.5]} 42. Qxf7+ {[%clk 0:01:18.3]} 42... Kh6 {[%clk 0:00:04]} 43.
Qf6+ {[%clk 0:01:19.2]} 43... Kh5 {[%clk 0:00:04.2]} 44. Rh7# {[%clk 0:01:18.1]}
1-0

[Event "Early-Titled-Tuesday-Blitz-December-26-2023"]
[Site "Chess.com"]
[Date "2023.12.26"]
[Round "3"]
[White "whitemirrorninja"]
[Black "GMBenjaminBok"]
[Result "0-1"]
[WhiteElo "2544"]
[BlackElo "2972"]
[TimeControl "180+1"]
[EndTime "8:26:48 PST"]
[Termination "GMBenjaminBok won by resignation"]

1. e4 {[%clk 0:03:00.9]} 1... c5 {[%clk 0:02:58.7]} 2. Nf3 {[%clk 0:02:59.6]}
2... d6 {[%clk 0:02:58.8]} 3. Nc3 {[%clk 0:03:00.2]} 3... Nf6 {[%clk 0:02:58.7]}
4. e5 {[%clk 0:03:00.7]} 4... dxe5 {[%clk 0:02:59.6]} 5. Nxe5 {[%clk 0:03:01.3]}
5... a6 {[%clk 0:03:00.1]} 6. g3 {[%clk 0:02:58.7]} 6... Qd6 {[%clk 0:03:00.2]}
7. Nf3 {[%clk 0:02:59]} 7... b5 {[%clk 0:03:00.1]} 8. Bg2 {[%clk 0:02:54.3]}
8... Bb7 {[%clk 0:03:00.4]} 9. O-O {[%clk 0:02:53.2]} 9... e6 {[%clk 0:03:00.5]}
10. Re1 {[%clk 0:02:52.7]} 10... Nbd7 {[%clk 0:02:59]} 11. d3 {[%clk 0:02:52.4]}
11... Be7 {[%clk 0:02:58.2]} 12. a4 {[%clk 0:02:52.4]} 12... Qb6 {[%clk
0:02:53.7]} 13. b3 {[%clk 0:01:56.3]} 13... O-O {[%clk 0:02:52.3]} 14. Bb2
{[%clk 0:01:55.4]} 14... Rfd8 {[%clk 0:02:51.8]} 15. axb5 {[%clk 0:01:54.1]}
15... axb5 {[%clk 0:02:51.6]} 16. Qe2 {[%clk 0:01:53.1]} 16... h6 {[%clk
0:02:43]} 17. Ne4 {[%clk 0:01:52.8]} 17... Nxe4 {[%clk 0:02:41.2]} 18. dxe4
{[%clk 0:01:53.7]} 18... Bf6 {[%clk 0:02:41.6]} 19. e5 {[%clk 0:01:47.6]} 19...
Be7 {[%clk 0:02:40.9]} 20. h4 {[%clk 0:01:45.4]} 20... Rxa1 {[%clk 0:02:18.6]}
21. Rxa1 {[%clk 0:01:44.9]} 21... Ra8 {[%clk 0:02:19]} 22. Rxa8+ {[%clk
0:01:42.8]} 22... Bxa8 {[%clk 0:02:19.9]} 23. Qd2 {[%clk 0:01:40.5]} 23... Qc7
{[%clk 0:02:13]} 24. Qe2 {[%clk 0:01:40.8]} 24... Qa5 {[%clk 0:02:03.5]} 25. Qd2
{[%clk 0:01:33.1]} 25... Qa7 {[%clk 0:01:58.2]} 26. Qe2 {[%clk 0:01:06.8]} 26...
Qa6 {[%clk 0:01:49.7]} 27. Qd2 {[%clk 0:01:02.2]} 27... Nb6 {[%clk 0:01:45.9]}
28. Ne1 {[%clk 0:00:53]} 28... Bxg2 {[%clk 0:01:45.4]} 29. Nxg2 {[%clk
0:00:53.9]} 29... Qa2 {[%clk 0:01:43.9]} 30. Qc1 {[%clk 0:00:50.6]} 30... c4
{[%clk 0:01:40.5]} 31. Bd4 {[%clk 0:00:42.8]} 31... Nd5 {[%clk 0:01:34.2]} 32.
bxc4 {[%clk 0:00:33]} 32... Qxc4 {[%clk 0:01:32.6]} 33. Qa1 {[%clk 0:00:25.6]}
33... Qxc2 {[%clk 0:01:28.8]} 34. Qa8+ {[%clk 0:00:23.9]} 34... Kh7 {[%clk
0:01:28.9]} 35. Qe8 {[%clk 0:00:23.2]} 35... Qd1+ {[%clk 0:01:28]} 36. Kh2
{[%clk 0:00:20.9]} 36... Qxd4 {[%clk 0:01:28.1]} 37. Qxf7 {[%clk 0:00:20.7]}
37... Qxe5 {[%clk 0:01:27.9]} 38. Qe8 {[%clk 0:00:18.4]} 38... b4 {[%clk
0:01:26.6]} 39. h5 {[%clk 0:00:17.6]} 39... Qf5 {[%clk 0:01:20.4]} 40. Qb5
{[%clk 0:00:09.5]} 40... Qxh5+ {[%clk 0:01:18.4]} 41. Kg1 {[%clk 0:00:10.2]}
41... Qd1+ {[%clk 0:01:16.4]} 42. Kh2 {[%clk 0:00:10.8]} 42... b3 {[%clk
0:01:17]} 43. Qb7 {[%clk 0:00:07.7]} 43... Bf6 {[%clk 0:01:14.2]} 44. Nh4 {[%clk
0:00:06.3]} 44... b2 {[%clk 0:01:10.6]} 45. g4 {[%clk 0:00:06.9]} 0-1

[Event "Early-Titled-Tuesday-Blitz-December-26-2023"]
[Site "Chess.com"]
[Date "2023.12.26"]
[Round "3"]
[White "Aygehovit1992"]
[Black "DrCeltic"]
[Result "1-0"]
[WhiteElo "2762"]
[BlackElo "2515"]
[TimeControl "180+1"]
[EndTime "8:26:53 PST"]
[Termination "Aygehovit1992 won by resignation"]

1. e4 {[%clk 0:02:57.2]} 1... c5 {[%clk 0:03:00]} 2. Nc3 {[%clk 0:02:53.3]} 2...
a6 {[%clk 0:02:59.5]} 3. d4 {[%clk 0:02:52.9]} 3... cxd4 {[%clk 0:02:59.8]} 4.
Qxd4 {[%clk 0:02:53.8]} 4... Nc6 {[%clk 0:03:00.5]} 5. Qe3 {[%clk 0:02:53.6]}
5... b5 {[%clk 0:02:58.5]} 6. a4 {[%clk 0:02:49]} 6... b4 {[%clk 0:02:58.7]} 7.
Nd5 {[%clk 0:02:49.1]} 7... e6 {[%clk 0:02:56.2]} 8. Nb6 {[%clk 0:02:47.4]} 8...
Rb8 {[%clk 0:02:55.1]} 9. a5 {[%clk 0:02:41.9]} 9... Nxa5 {[%clk 0:02:49.6]} 10.
Nxc8 {[%clk 0:02:40.7]} 10... Rxc8 {[%clk 0:02:50.5]} 11. Bxa6 {[%clk 0:02:40]}
11... Ra8 {[%clk 0:02:49.5]} 12. Bb5 {[%clk 0:02:34.5]} 12... Nf6 {[%clk
0:02:40.6]} 13. Nf3 {[%clk 0:02:34.2]} 13... Qc7 {[%clk 0:02:35.7]} 14. O-O
{[%clk 0:02:27.2]} 14... Bc5 {[%clk 0:02:34.3]} 15. Qg5 {[%clk 0:02:27.2]} 15...
O-O {[%clk 0:02:27.8]} 16. e5 {[%clk 0:02:16.8]} 16... Ne4 {[%clk 0:02:21.5]}
17. Qh4 {[%clk 0:02:16.5]} 17... Nxf2 {[%clk 0:01:44.8]} 18. Rxf2 {[%clk
0:02:13.6]} 18... Bxf2+ {[%clk 0:01:18.6]} 19. Qxf2 {[%clk 0:02:08.8]} 19...
Rfb8 {[%clk 0:01:14]} 20. Bd3 {[%clk 0:02:04.6]} 20... Nb3 {[%clk 0:01:11.9]}
21. Rxa8 {[%clk 0:02:03.2]} 21... Rxa8 {[%clk 0:01:12.5]} 22. Bxh7+ {[%clk
0:01:58.2]} 22... Kxh7 {[%clk 0:01:06]} 23. Ng5+ {[%clk 0:01:57.8]} 23... Kh8
{[%clk 0:01:01.4]} 24. Qf3 {[%clk 0:00:34.6]} 24... Qc5+ {[%clk 0:00:31.9]} 25.
Kh1 {[%clk 0:00:31.6]} 25... Ra1 {[%clk 0:00:19.9]} 26. Qh5+ {[%clk 0:00:29.9]}
26... Kg8 {[%clk 0:00:20.4]} 27. Qxf7+ {[%clk 0:00:30]} 27... Kh8 {[%clk
0:00:20.6]} 28. Qe8+ {[%clk 0:00:28.5]} 1-0